[Event "Croatian Championship 2022"]
[Site "Split"]
[Date "2022.12.05"]
[Round "7.1"]
[White "Doric, Darko"]
[Black "Martinovic, Sasa"]
[Result "1/2-1/2"]
[ECO "E14"]
[WhiteElo "2446"]
[BlackElo "2557"]
[Annotator "TA"]
[PlyCount "30"]
[EventDate "2022.11.29"]
[EventType "tourn"]
[EventCountry "CRO"]
[SourceTitle "playchess.com"]
[Source "ChessBase"]
[SourceQuality "1"]
[TimeControl "40/5400+30:1800+30"]

{[%evp 19,30,0,0,0,3,4,8,5,8,0,0,0,12]} 1. d4 {[%emt 0:00:20]} e6 {[%emt 0:00:05]} 2. c4 {[%emt 0:00:14]} Nf6 {[%emt 0:00:04]} 3. Nf3 {[%emt 0:00:19]} d5 {[%emt 0:00:19]} 4. e3 {[%emt 0:00:08]} b6 {[%emt 0:00:27]} 5. Bd3 {[%emt 0:01:11]} Bb7 {[%emt 0:00:33]} 6. O-O {[%emt 0:00:21]} Nbd7 {[%emt 0:00:33]} 7. b3 {[%emt 0:04:17]} Be7 {[%emt 0:01:10]} 8. Bb2 {[%emt 0:00:20]} O-O {[%emt 0:00:14]} 9. Nbd2 {[%emt 0:01:12]} c5 {[%emt 0:01:21]} 10. cxd5 {[%emt 0:01:07]} Nxd5 {[%emt 0:04:36] The position is equal.} 11. a3 {[%emt 0:08:54] E14: Queen's Indian: Classical Variation (4 e3).} Rc8 {[%emt 0:01:29]} 12. Rc1 {[%emt 0:00:19]} h6 {[%emt 0:12:42]} 13. Qe2 {[%emt 0:04:53]} cxd4 {[%emt 0:02:46]} 14. Nxd4 {[%emt 0:00:34] [#]} Nc5 $146 {[%emt 0:00:27]} ({Predecessor:} 14... Bd6 15. Rxc8 Bxc8 16. Nc4 Nc5 17. b4 {0-1 (17) Avy,J-Meyer,P WCCF email 2005}) 15. Bc4 {[%emt 0:01:49]} a6 {[%emt 0:12:53] An uneventful encounter.   Weighted Error Value: White=0.00 (flawless) /Black=0.02 (flawless)} 1/2-1/2

[Event "Croatian Championship 2022"]
[Site "Split"]
[Date "2022.12.05"]
[Round "7.2"]
[White "Saric, Ante"]
[Black "Kozul, Zdenko"]
[Result "1/2-1/2"]
[ECO "D71"]
[WhiteElo "2504"]
[BlackElo "2539"]
[Annotator "TA"]
[PlyCount "40"]
[EventDate "2022.11.29"]
[EventType "tourn"]
[EventCountry "CRO"]
[SourceTitle "playchess.com"]
[Source "ChessBase"]
[SourceQuality "1"]
[TimeControl "40/5400+30:1800+30"]

{[%evp 13,20,11,4,4,26,11,13,11,20]} 1. d4 {[%emt 0:00:04]} Nf6 {[%emt 0:00:07]} 2. c4 {[%emt 0:00:04]} g6 {[%emt 0:00:07]} 3. Nc3 {[%emt 0:00:03]} Bg7 {[%emt 0:00:29]} 4. g3 {[%emt 0:00:05]} d5 {[%emt 0:02:53]} 5. cxd5 {[%emt 0:00:06]} Nxd5 {[%emt 0:00:05]} 6. Bg2 {[%emt 0:00:04]} Nxc3 {[%emt 0:04:17]} 7. bxc3 {[%emt 0:00:09]} c5 {[%emt 0:00:04][%cal Rc5d4]} 8. Nf3 $1 {[%emt 0:00:06][%mdl 4] outshines the older 8.e3. D75: Fianchetto Grünfeld: Main Line with 7...c5.} ({Of course not} 8. dxc5 Bxc3+ 9. Bd2 Bxa1 10. Qxa1 f6 $17) 8... cxd4 {[%emt 0:01:43]} (8... Nc6 $5 {[%cal Rc5d4]}) 9. cxd4 {[%emt 0:00:05]} Nc6 {[%emt 0:00:08][%cal Rc6d4]} 10. O-O {[%emt 0:00:31]} O-O {[%emt 0:11:00] [#] Not much happened in this game.   Weighted Error Value: White=0.02 (flawless) /Black=0.08 (flawless)} ({Resist} 10... Bxd4 11. Nxd4 Nxd4 12. Bb2 $16) {Predecessor:} 11. Rb1 $146 Nxd4 12. Nxd4 Qxd4 13. Qxd4 Bxd4 14. Bh6 Rd8 15. Bxb7 Rb8 16. Bxc8 Rbxc8 17. Rfc1 f6 18. Rxc8 Rxc8 19. Rc1 Rxc1+ 20. Bxc1 Kf7 {½-½ (31) Mamedyarov,S (2774)-Vachier Lagrave,M (2779) Stavanger 2019} 1/2-1/2

[Event "Croatian Championship 2022"]
[Site "Split"]
[Date "2022.12.05"]
[Round "7.3"]
[White "Jovanovic, Zoran"]
[Black "Bosiocic, Marin"]
[Result "1/2-1/2"]
[ECO "C67"]
[WhiteElo "2513"]
[BlackElo "2536"]
[Annotator "TA"]
[PlyCount "33"]
[EventDate "2022.11.29"]
[EventType "tourn"]
[EventCountry "CRO"]
[SourceTitle "playchess.com"]
[Source "ChessBase"]
[SourceQuality "1"]
[TimeControl "40/5400+30:1800+30"]

{[%evp 16,20,18,11,18,16,19]} 1. e4 {[%emt 0:00:01]} e5 {[%emt 0:00:04]} 2. Nf3 {[%emt 0:00:04]} Nc6 {[%emt 0:00:05]} 3. Bb5 {[%emt 0:00:02]} Nf6 {[%emt 0:00:04]} 4. O-O {[%emt 0:00:04][%cal Bh1f1,Bf1e1,Be1e5][%mdl 32]} Nxe4 {[%emt 0:00:04]} 5. Re1 {[%emt 0:00:02]} Nd6 {[%emt 0:00:04]} 6. Nxe5 {[%emt 0:00:04]} Be7 {[%emt 0:00:14]} 7. Bf1 {[%emt 0:00:04]} Nxe5 {[%emt 0:00:07]} 8. Rxe5 {[%emt 0:00:04]} O-O {[%emt 0:00:22]} 9. d4 {[%emt 0:00:02]} Bf6 {[%emt 0:00:11] C67: Ruy Lopez: Berlin Defence: 4 0-0 Nxe4.} 10. Re2 {[%emt 0:00:05]} Nf5 {[%emt 1:34:15] [#] An uneventful encounter.} {Predecessor:} 11. d5 $146 d6 12. Nd2 c6 13. Ne4 Be5 14. c3 cxd5 15. Qxd5 Be6 16. Qd1 h6 17. Re1 {½-½ (67) Vitiugov,N (2722)-Narayanan,S (2618) Chess.com INT 2020} 1/2-1/2

[Event "Croatian Championship 2022"]
[Site "Split"]
[Date "2022.12.05"]
[Round "7.4"]
[White "Stevic, Hrvoje"]
[Black "Bukal, Vladimir Jr."]
[Result "1/2-1/2"]
[ECO "B22"]
[WhiteElo "2543"]
[BlackElo "2411"]
[Annotator "TA"]
[PlyCount "47"]
[EventDate "2022.11.29"]
[EventType "tourn"]
[EventCountry "CRO"]
[SourceTitle "playchess.com"]
[Source "ChessBase"]
[SourceQuality "1"]
[TimeControl "40/5400+30:1800+30"]

{[%evp 23,47,0,0,8,11,0,0,-37,-41,-70,-29,-27,0,0,0,0,0,0,0,0,0,0,0,0,0,0]} 1. e4 {[%emt 0:00:34]} c5 {[%emt 0:00:07]} 2. c3 {[%emt 0:00:25]} d5 {[%emt 0:00:05]} 3. exd5 {[%emt 0:00:08]} Qxd5 {[%emt 0:00:07]} 4. d4 {[%emt 0:00:10]} Nf6 {[%emt 0:00:07]} 5. Nf3 {[%emt 0:00:07]} Nc6 {[%emt 0:00:04]} 6. Be2 {[%emt 0:05:50]} e6 {[%emt 0:00:16]} 7. O-O {[%emt 0:00:38]} cxd4 {[%emt 0:00:29]} 8. cxd4 {[%emt 0:00:06]} Be7 {[%emt 0:00:07]} 9. Nc3 {[%emt 0:00:08]} Qd6 {[%emt 0:00:06]} 10. Nb5 {[%emt 0:00:19]} Qd8 {[%emt 0:00:07]} 11. Bf4 {[%emt 0:00:06]} Nd5 {[%emt 0:00:22]} 12. Bg3 {[%emt 0:00:06]} O-O {[%emt 0:00:14]} 13. Rc1 {[%emt 0:01:20] B22: Sicilian: 2 c3.} Bd7 {[%emt 0:02:41]} 14. a3 {[%emt 0:16:59]} Qb6 {[%emt 0:05:16] [#]} 15. Qd2 $5 $146 {[%emt 0:19:05][%mdl 8] New and interesting.} ({Predecessor:} 15. Re1 Rfd8 16. Bc4 Be8 17. Qe2 Rac8 18. Nc3 Nxc3 19. bxc3 Qa5 20. a4 Qh5 21. Qa2 {0-1 (44) Bosboom,M-Van der Vliet,F (2370) Eindhoven 1983}) 15... Na5 {[%emt 0:13:54]} 16. Qd3 {[%emt 0:00:21] Prevents Nb3.} Bxb5 {[%emt 0:03:16]} (16... Rac8 {feels hotter.} 17. b4 Qxb5 18. Qxb5 Bxb5 19. Bxb5 Nb3) 17. Qxb5 {[%emt 0:00:05]} Rfd8 {[%emt 0:06:00]} 18. Qxb6 {[%emt 0:29:51] The position is equal.} axb6 {[%emt 0:01:03]} 19. Rc2 {[%emt 0:01:11]} Bd6 {[%emt 0:08:42]} 20. Bb5 {[%emt 0:07:37]} Kf8 {[%emt 0:06:28]} 21. Bh4 {[%emt 0:00:49] This pair of bishops is nice.} Be7 {[%emt 0:04:10]} 22. Bg3 {[%emt 0:00:05]} Bd6 {[%emt 0:00:27]} 23. Bh4 {[%emt 0:00:04]} Be7 {[%emt 0:00:03]} 24. Bg3 {[%emt 0:00:02] Weighted Error Value: White=0.08 (flawless) /Black=0.07 (flawless)} 1/2-1/2

[Event "Croatian Championship 2022"]
[Site "Split"]
[Date "2022.12.05"]
[Round "7.5"]
[White "Brkic, Ante"]
[Black "Saric, Ivan"]
[Result "1/2-1/2"]
[ECO "B33"]
[WhiteElo "2610"]
[BlackElo "2674"]
[Annotator "TA"]
[PlyCount "43"]
[EventDate "2022.11.29"]
[EventType "tourn"]
[EventCountry "CRO"]
[SourceTitle "playchess.com"]
[Source "ChessBase"]
[SourceQuality "1"]
[TimeControl "40/5400+30:1800+30"]

{[%evp 20,23,19,8,10,9]} 1. e4 {[%emt 0:00:05]} c5 {[%emt 0:01:50]} 2. Nf3 {[%emt 0:00:06][%cal Bg1f3,Bf3d4,Bd4b5,Bb5a3,Ba3c2][%mdl 32]} Nc6 {[%emt 0:00:03]} 3. d4 {[%emt 0:00:07]} cxd4 {[%emt 0:00:03]} 4. Nxd4 {[%emt 0:00:04]} Nf6 {[%emt 0:00:08]} 5. Nc3 {[%emt 0:00:04]} e5 {[%emt 0:00:03]} 6. Ndb5 {[%emt 0:00:03]} d6 {[%emt 0:00:04]} 7. Bg5 {[%emt 0:00:04]} a6 {[%emt 0:00:04]} 8. Na3 {[%emt 0:00:03]} b5 {[%emt 0:00:06]} 9. Nd5 {[%emt 0:00:03]} Be7 {[%emt 0:00:04]} 10. Bxf6 {[%emt 0:00:03]} Bxf6 {[%emt 0:00:05]} 11. c4 {[%emt 0:00:03]} b4 {[%emt 0:00:07] B33: Sicilian: Pelikan and Sveshnikov Variations.} 12. Nc2 {[%emt 0:00:03] [#] A rather calm draw.} {Predecessor:} a5 $146 13. Be2 O-O 14. O-O g6 15. Bg4 Bb7 16. Qd3 Bg7 17. Rad1 Nd4 18. Nxd4 exd4 19. b3 Ra7 20. g3 Re8 21. Bf3 Bxd5 22. exd5 {½-½ (85) Kamsky,G (2666)-Firouzja,A (2785) Chess.com INT 2022} 1/2-1/2

[Event "Croatian Championship 2022"]
[Site "Split"]
[Date "2022.12.05"]
[Round "7.6"]
[White "Kurajica, Bojan"]
[Black "Zelcic, Robert"]
[Result "0-1"]
[ECO "D37"]
[WhiteElo "2487"]
[BlackElo "2496"]
[Annotator "TA"]
[PlyCount "110"]
[EventDate "2022.11.29"]
[EventType "tourn"]
[EventCountry "CRO"]
[SourceTitle "playchess.com"]
[Source "ChessBase"]
[SourceQuality "1"]
[TimeControl "40/5400+30:1800+30"]

{[%evp 11,110,-20,5,0,0,0,0,0,0,-16,-14,-6,0,0,0,0,0,-13,-5,-8,-6,-20,-17,-16,-11,-15,-8,-9,-11,-20,-14,-38,-22,-33,-24,-23,-14,-8,-10,-21,-33,-27,-13,-22,-15,-14,0,0,19,27,16,12,20,16,32,41,111,104,94,92,111,115,100,96,104,112,97,75,129,91,119,113,103,105,108,29,29,0,0,0,0,0,0,0,0,-8,-8,-225,-225,-225,-225,-210,-204,-1318,-1201,-6207,-4894,-6086,-4096,-29968,-6516]} 1. Nf3 {[%emt 0:00:02]} Nf6 {[%emt 0:00:07]} 2. d4 {[%emt 0:00:05]} d5 {[%emt 0:00:06]} 3. c4 {[%emt 0:00:14]} e6 {[%emt 0:00:03]} 4. e3 {[%emt 0:00:05]} Be7 {[%emt 0:00:15]} 5. Nc3 {[%emt 0:00:44]} O-O {[%emt 0:00:15]} 6. a3 {[%emt 0:00:32]} c5 {[%emt 0:00:07]} 7. dxc5 {[%emt 0:00:24] D37: Queen's Gambit Declined: 5 Bf4.} dxc4 $1 {[%emt 0:00:04][%mdl 4] is recently more successful than 7...Bxc5.} 8. Qxd8 {[%emt 0:09:42]} Rxd8 {[%emt 0:00:04]} 9. Bxc4 {[%emt 0:00:11] The position is equal.} Bxc5 {[%emt 0:00:03]} 10. b4 {[%emt 0:00:31]} Be7 {[%emt 0:00:04]} 11. Bb2 {[%emt 0:00:23]} a6 {[%emt 0:00:19] [#]} 12. Be2 $146 {[%emt 0:06:30]} ({Predecessor:} 12. O-O b5 13. Bb3 Bb7 14. Nd4 Nc6 15. Nxc6 Bxc6 16. Ne2 Rd2 17. Nd4 Bxg2 18. Bc1 Rxd4 19. exd4 Bxf1 20. Kxf1 {½-½ (44) Spoeler,G (1633)-Pohlmeier,U (1611) Germany 2022}) 12... b5 {[%emt 0:00:52]} 13. O-O {[%emt 0:00:28]} Bb7 {[%emt 0:00:31]} 14. Nd4 {[%emt 0:01:17]} Nbd7 {[%emt 0:02:49][%cal Bb8d7,Bd7b6,Bb6a4][%mdl 32]} 15. Nb3 {[%emt 0:00:54]} Rac8 {[%emt 0:00:51]} 16. Na5 {[%emt 0:11:17]} Ba8 {[%emt 0:00:05]} 17. Rac1 {[%emt 0:01:26]} Nb6 {[%emt 0:00:26] Black wants to play ...Rd2.} 18. Nb1 {[%emt 0:00:55] Prevents Rd2.} Na4 {[%emt 0:09:16]} 19. Bd4 {[%emt 0:08:56]} Ne4 {[%emt 0:11:33]} 20. f3 {[%emt 0:10:43]} Nd6 {[%emt 0:04:33]} 21. g4 {[%emt 0:02:50]} f5 {[%emt 0:02:56]} 22. h3 {[%emt 0:00:35]} Kf7 {[%emt 0:01:54]} 23. Nd2 {[%emt 0:03:34]} Bf6 {[%emt 0:01:43]} 24. Ndb3 {[%emt 0:08:27]} Bd5 {[%emt 0:04:23]} 25. Bxf6 {[%emt 0:12:09]} (25. Rxc8 {simplifies} Rxc8 26. Nc5 Nxc5 27. Bxc5 Nb7 28. Nxb7 Bxb7 29. Rd1) 25... Kxf6 {[%emt 0:00:50]} 26. Kf2 {[%emt 0:00:42]} Nc4 {[%emt 0:05:00]} 27. gxf5 {[%emt 0:02:51]} exf5 {[%emt 0:02:30]} (27... Nxa5 {simplifies} 28. Nxa5 exf5 29. Rfd1 Nc3) 28. Rfd1 $1 {[%emt 0:08:11]} Nab2 {[%emt 0:01:35] Hoping for ...Nxa5.} (28... Nxa3 $2 29. Rxd5 $1 {[%mdl 512]} Rxc1 30. Rxd8 $18) 29. Rd4 {[%emt 0:02:09]} Nxa5 {[%emt 0:00:12]} (29... Nxa3 $2 30. Rxd5 $1 {[%mdl 512]} Rxd5 31. Rxc8 $18) 30. Rxc8 {[%emt 0:00:10]} Rxc8 {[%emt 0:00:08]} 31. Nxa5 {[%emt 0:00:03]} Ke6 {[%emt 0:04:43]} 32. e4 {[%emt 0:00:22]} fxe4 {[%emt 0:00:05]} 33. fxe4 {[%emt 0:00:07]} Rf8+ {[%emt 0:00:03]} (33... Ba8 $1 $14) 34. Ke3 $16 {[%emt 0:00:57]} Ba8 {[%emt 0:00:53] [#]} 35. Nb3 $1 {[%emt 0:02:01] Nc5+ is the strong threat.} Ke7 {[%emt 0:03:54]} 36. Nc5 {[%emt 0:00:59]} Bc6 {[%emt 0:00:08] Prevents Rd7+.} 37. Rd2 {[%emt 0:01:53] Prevents g5.} (37. Nxa6 $6 Ra8 38. Nc7 Rxa3+ 39. Kf4 Rxh3 $11) 37... Nc4+ {[%emt 0:00:05]} 38. Bxc4 {[%emt 0:00:03]} bxc4 {[%emt 0:00:02][%mdl 4096] Endgame KRB-KRN} 39. Rc2 {[%emt 0:00:51]} (39. Nxa6 $6 Ra8 40. Nc5 Rxa3+ 41. Kd4 Bb5 $11) 39... Rf6 {[%emt 0:00:16]} (39... Rf1 $142) 40. Kd4 {[%emt 0:00:00]} (40. Rxc4 $6 Rh6 $14) (40. Nxa6 $2 Ba4 41. Rg2 Rxa6 $19) 40... Rd6+ {[%emt 0:00:00]} 41. Kxc4 {[%emt 0:01:17]} Bb5+ {[%emt 0:08:18] [#]} 42. Kc3 $1 {[%emt 0:02:14]} Rh6 {[%emt 0:00:27]} 43. Rh2 {[%emt 0:00:31]} ({White should play} 43. Kd4 $16) 43... g5 $1 $11 {[%emt 0:04:07][%cal Bg7g5,Bg5g4,Bg4g3][%mdl 32]} 44. Nd3 {[%emt 0:20:43]} g4 {[%emt 0:21:34] And now ...Bxd3 would win.} 45. Nf4 {[%emt 0:01:55]} Rh4 {[%emt 0:09:34] Strongly threatening ...g3.} 46. Kd4 {[%emt 0:01:55]} g3 {[%emt 0:11:50][%csl LRf4,LRh2]} 47. Nd5+ {[%emt 0:00:09]} Kd6 $1 {[%emt 0:04:53]} 48. Rg2 {[%emt 0:04:16]} Bc6 {[%emt 0:00:16]} 49. Kd3 $2 {[%emt 0:04:41] This costs White the game.} (49. Nc3 $1 $11 Rxh3 50. a4) 49... Bxd5 $19 {[%emt 0:12:13]} ({Stronger than} 49... Rxh3 50. Ke3 $11) 50. exd5 {[%emt 0:00:06]} Rxh3 {[%emt 0:00:02] KR-KR} 51. Ke4 {[%emt 0:02:32]} h5 {[%emt 0:00:35]} 52. a4 $2 {[%emt 0:00:50]} (52. Rc2 Rh4+ 53. Kf3) 52... Rh4+ {[%emt 0:02:40]} 53. Kf5 {[%emt 0:00:35]} Rg4 {[%emt 0:03:29]} ({Weaker is} 53... Kxd5 54. Rxg3 Rxb4 55. Ra3 $17) 54. b5 {[%emt 0:00:52]} axb5 {[%emt 0:00:03]} ({Not} 54... Rxa4 55. bxa6 Kxd5 56. Rxg3 $11) 55. axb5 {[%emt 0:00:02]} Kxd5 {[%emt 0:00:05] Weighted Error Value: White=0.57/Black=0.07 (flawless)} 0-1

[Event "Croatian Championship 2022"]
[Site "Split"]
[Date "2022.12.06"]
[Round "8.1"]
[White "Martinovic, Sasa"]
[Black "Saric, Ivan"]
[Result "1/2-1/2"]
[ECO "D37"]
[WhiteElo "2557"]
[BlackElo "2674"]
[Annotator "TA"]
[PlyCount "48"]
[EventDate "2022.11.29"]
[EventType "tourn"]
[EventCountry "CRO"]
[SourceTitle "playchess.com"]
[Source "ChessBase"]
[SourceQuality "1"]
[TimeControl "40/5400+30:1800+30"]

{[%evp 9,48,10,26,29,26,22,36,28,32,18,37,55,32,17,21,28,41,40,40,26,39,22,27,26,48,47,71,32,38,33,40,27,29,30,53,45,39,34,37,33,45]} 1. d4 {[%emt 0:00:03]} Nf6 {[%emt 0:00:07]} 2. c4 {[%emt 0:00:06]} e6 {[%emt 0:00:03]} 3. Nf3 {[%emt 0:00:07]} d5 {[%emt 0:00:07]} 4. Nc3 {[%emt 0:00:06]} Nbd7 {[%emt 0:00:40][%cal Bb8d7,Bd7f8,Bf8e6][%mdl 32]} 5. Qc2 {[%emt 0:00:19]} a6 {[%emt 0:04:09]} 6. cxd5 {[%emt 0:01:02] D37: Queen's Gambit Declined: 5 Bf4.} exd5 {[%emt 0:00:05]} 7. Bf4 {[%emt 0:00:48]} c6 {[%emt 0:02:40]} 8. h3 {[%emt 0:01:16]} Be7 {[%emt 0:00:07]} 9. e3 {[%emt 0:00:11]} Nf8 {[%emt 0:05:05]} 10. Bd3 {[%emt 0:00:22]} Ne6 {[%emt 0:00:40]} 11. Bh2 {[%emt 0:04:00]} O-O {[%emt 0:00:44]} 12. O-O {[%emt 0:00:33] [#]} Bd6 $146 {[%emt 0:07:21]} ({Predecessor:} 12... c5 13. dxc5 Nxc5 14. Rfd1 Nxd3 15. Qxd3 Qb6 16. Be5 Be6 17. Bd4 Qb4 18. Ne5 Rad8 {1-0 (36) Besso,G (1882)-Vargas,G (2143) Buenos Aires 2014}) 13. Bxd6 {[%emt 0:08:40]} Qxd6 {[%emt 0:01:40]} 14. Rab1 {[%emt 0:00:04]} Re8 {[%emt 0:04:25]} 15. b4 {[%emt 0:00:16]} g6 {[%emt 0:27:15]} 16. Rfc1 {[%emt 0:00:15]} Ng7 {[%emt 0:00:27]} 17. a4 {[%emt 0:00:09]} Bd7 {[%emt 0:02:31]} 18. Ne5 {[%emt 0:08:04]} Be6 {[%emt 0:02:16]} 19. Ne2 {[%emt 0:04:58]} Nd7 {[%emt 0:00:22]} 20. Nxd7 {[%emt 0:13:32]} Bxd7 {[%emt 0:00:05]} 21. Qc5 {[%emt 0:01:22]} Qb8 {[%emt 0:02:03]} 22. b5 {[%emt 0:04:08] [#] Strongly threatening bxa6. White is slightly better.} Ne6 {[%emt 0:00:25]} 23. Qb4 {[%emt 0:03:59]} axb5 {[%emt 0:02:34]} 24. axb5 {[%emt 0:00:07]} Qa7 {[%emt 0:03:23] Weighted Error Value: White=0.05 (flawless) /Black=0.10 (very precise)} 1/2-1/2

[Event "Croatian Championship 2022"]
[Site "Split"]
[Date "2022.12.06"]
[Round "8.2"]
[White "Zelcic, Robert"]
[Black "Brkic, Ante"]
[Result "1/2-1/2"]
[ECO "B53"]
[WhiteElo "2496"]
[BlackElo "2610"]
[Annotator "TA"]
[PlyCount "108"]
[EventDate "2022.11.29"]
[EventType "tourn"]
[EventCountry "CRO"]
[SourceTitle "playchess.com"]
[Source "ChessBase"]
[SourceQuality "1"]
[TimeControl "40/5400+30:1800+30"]

{[%evp 17,108,0,-13,-20,-22,-20,0,0,0,0,0,0,0,0,0,0,0,0,0,0,-9,-8,0,-9,-19,-29,-28,-28,-30,-18,-20,-38,-38,-48,-33,-31,-12,-32,-32,-32,10,6,33,0,0,0,0,0,0,0,0,6,8,8,388,0,0,0,0,0,1,1,1,1,1,1,1,1,1,1,1,0,0,0,0,0,0,0,0,0,0,0,0,0,0,0,0,0,0,0,0,0,0]} 1. e4 {[%emt 0:00:03]} c5 {[%emt 0:00:09]} 2. Nf3 {[%emt 0:00:09]} d6 {[%emt 0:00:07]} 3. d4 {[%emt 0:00:12]} cxd4 {[%emt 0:00:07]} 4. Qxd4 {[%emt 0:00:04]} Nf6 {[%emt 0:00:21]} 5. Nc3 {[%emt 0:00:08]} Nc6 {[%emt 0:01:32]} 6. Bb5 {[%emt 0:00:07]} Bd7 {[%emt 0:00:07]} 7. Bxc6 {[%emt 0:00:09]} Bxc6 {[%emt 0:00:04]} 8. Bg5 {[%emt 0:00:04]} e6 {[%emt 0:01:05]} 9. O-O-O {[%emt 0:00:08]} Be7 {[%emt 0:00:38]} 10. Bxf6 {[%emt 0:00:15] 10.Qd3 gains popularity. B53: Sicilian: 2...d6: Lines with Qxd4.} Bxf6 {[%emt 0:06:23]} 11. Qxd6 {[%emt 0:00:06]} Qxd6 {[%emt 0:06:55]} 12. Rxd6 {[%emt 0:00:03]} Bxc3 {[%emt 0:00:16]} 13. bxc3 {[%emt 0:00:04][%cal Bb2c3,Bc3c4][%mdl 32]} Bxe4 {[%emt 0:00:10]} 14. Ne5 $1 {[%emt 0:00:05]} Rc8 {[%emt 0:07:37]} 15. Rd4 {[%emt 0:00:14]} Bd5 {[%emt 0:09:32] aiming for ...0-0.} 16. c4 $1 {[%emt 0:00:06]} Bxg2 {[%emt 0:04:27]} 17. Rg1 {[%emt 0:00:06]} f6 {[%emt 0:01:30]} 18. Nd7 {[%emt 0:11:14]} Ke7 {[%emt 0:01:01][%cal Oc8d8]} 19. Rxg2 {[%emt 0:00:02]} Rhg8 {[%emt 0:00:29] [#]} 20. Rg3 $146 {[%emt 0:01:50] Threatens to win with Rb3.} ({Predecessor:} 20. Rh4) 20... Rc7 $1 {[%emt 0:02:47]} 21. Rgd3 {[%emt 0:01:25][%cal Od7c5] [#] Nc5! is the strong threat.} (21. Rh4 {simplifies} Kxd7 22. Rxh7 Kd6 23. h4) 21... Rd8 {[%emt 0:00:52]} 22. Rg4 {[%emt 0:03:32]} Rdxd7 {[%emt 0:07:09]} 23. Rxg7+ $11 {[%emt 0:00:07][%mdl 4096] Endgame KRR-KRR} Ke8 {[%emt 0:00:07]} 24. Rg8+ {[%emt 0:00:38]} (24. Rgxd7 {simplifies} Rxd7 25. Rh3 e5 26. c5) 24... Kf7 {[%emt 0:00:27]} 25. Ra8 {[%emt 0:01:01]} Rxd3 {[%emt 0:09:24]} 26. cxd3 $15 {[%emt 0:00:06] KR-KR} b5 {[%emt 0:00:09]} 27. Kd2 {[%emt 0:01:58]} (27. Kb2 $5 {[%cal Rc4b5]}) 27... bxc4 {[%emt 0:01:56]} 28. dxc4 {[%emt 0:00:02]} Kg6 {[%emt 0:04:41]} (28... Rxc4 $5 {[%cal Rc4a4]} 29. Rxa7+ Kg6 $15) 29. Kc3 {[%emt 0:05:05]} Kf5 {[%emt 0:00:17]} 30. Rd8 {[%emt 0:00:08]} e5 {[%emt 0:11:59]} 31. Rd6 {[%emt 0:00:36]} a5 {[%emt 0:00:41]} 32. Ra6 {[%emt 0:05:37]} Rg7 {[%emt 0:05:17]} 33. c5 {[%emt 0:31:38][%cal Oa6d6]} Rg2 {[%emt 0:00:06][%csl LRf2,LRh2]} 34. Rxa5 {[%emt 0:00:30]} Ke6 $1 {[%emt 0:07:42]} 35. Ra6+ {[%emt 0:05:52]} Kd5 $2 {[%emt 0:00:14][%mdl 8192] [#]} (35... Ke7 $1 $11 {and Black is okay.}) 36. Rxf6 $2 {[%emt 0:00:04]} (36. Kb4 $1 $18 Rxf2 37. Rd6+ Ke4 38. a4) 36... Kxc5 $11 {[%emt 0:00:15] The position is equal.} 37. h3 {[%emt 0:00:30]} Rh2 {[%emt 0:03:09]} 38. Rf3 {[%emt 0:03:23]} e4 {[%emt 0:00:12] Inhibits a4.} 39. Rf5+ {[%emt 0:00:04]} Kd6 {[%emt 0:02:06]} 40. Kd4 {[%emt 0:00:00]} Rxh3 {[%emt 0:00:00]} 41. a4 {[%emt 0:06:47][%cal Oa4a5]} Ra3 {[%emt 0:03:06]} 42. a5 {[%emt 0:00:46]} Ra4+ {[%emt 0:00:46]} 43. Ke3 {[%emt 0:00:16]} Ke6 {[%emt 0:04:35]} 44. Rb5 {[%emt 0:00:07]} Kf6 {[%emt 0:07:17]} 45. Kf4 {[%emt 0:00:24]} Ra2 {[%emt 0:02:35]} 46. Rb6+ {[%emt 0:10:35]} Ke7 {[%emt 0:00:49]} 47. a6 {[%emt 0:01:13]} Rxf2+ {[%emt 0:03:57]} 48. Ke5 {[%emt 0:01:41][%cal Oa6a7]} Kd7 {[%emt 0:01:10] Prevents a7.} 49. Kd5 {[%emt 0:01:19]} Rf5+ {[%emt 0:02:35]} 50. Kc4 {[%emt 0:00:25]} e3 {[%emt 0:01:39] And now ...e2 would win.} 51. Kd3 {[%emt 0:00:45] Inhibits e2.} Ra5 {[%emt 0:00:52]} 52. Rh6 {[%emt 0:00:21]} Ra3+ {[%emt 0:00:32]} 53. Ke2 {[%emt 0:00:05]} Kc7 {[%emt 0:00:12]} 54. a7 {[%emt 0:00:03]} Rxa7 {[%emt 0:00:04] Weighted Error Value: White=0.12 (very precise) /Black=0.17 (very precise)} 1/2-1/2

[Event "Croatian Championship 2022"]
[Site "Split"]
[Date "2022.12.06"]
[Round "8.3"]
[White "Bukal, Vladimir Jr."]
[Black "Kurajica, Bojan"]
[Result "1/2-1/2"]
[ECO "A50"]
[WhiteElo "2411"]
[BlackElo "2487"]
[Annotator "TA"]
[PlyCount "22"]
[EventDate "2022.11.29"]
[EventType "tourn"]
[EventCountry "CRO"]
[SourceTitle "playchess.com"]
[Source "ChessBase"]
[SourceQuality "1"]
[TimeControl "40/5400+30:1800+30"]

{[%evp 12,22,18,8,47,35,31,0,0,1,38,-10,-10]} 1. Nf3 {[%emt 0:00:03]} Nf6 {[%emt 0:00:10]} 2. g3 {[%emt 0:00:05]} b6 {[%emt 0:00:11]} 3. Bg2 {[%emt 0:00:06]} Bb7 {[%emt 0:00:07]} 4. O-O {[%emt 0:00:06]} g6 {[%emt 0:00:40]} 5. d4 {[%emt 0:00:14]} Bg7 {[%emt 0:00:10]} 6. c4 {[%emt 0:00:11]} O-O {[%emt 0:00:58]} 7. Nc3 {[%emt 0:00:06] 7.Re1 is a critical line.} d5 {[%emt 0:00:18] A50: Queen's Fianchetto Defence (1 d4 Nf6 2 c4 b6).} 8. cxd5 {[%emt 0:00:48]} Nxd5 {[%emt 0:00:08]} 9. Qb3 {[%emt 0:00:47]} Nxc3 {[%emt 0:01:52]} 10. bxc3 {[%emt 0:00:06] [#]} Be4 $146 {[%emt 0:04:38]} ({Predecessor:} 10... Nc6 11. Bg5 h6 12. Bf4 g5 13. Bc1 Na5 14. Qc2 c5 15. dxc5 Qc7 16. cxb6 axb6 17. Rb1 Nc4 18. Rb4 Rfc8 {1-0 (47) Vincenzi,M (2074)-Meessen,M (2212) Porto Mannu 2018}) 11. Ne1 {[%emt 0:00:38]} (11. Rd1 $14 {deserves consideration.}) 11... Bxg2 {[%emt 1:26:48] Weighted Error Value: White=0.26 (precise) /Black=0.22 (precise)} 1/2-1/2